{"text_format":"3","workbook":"xlsx","n_sheets":1,"sheets":["Zapotrzebowanie"],"not_rendered":{"defined_names":1},"read":"whole","date_system":"1900"}

{"sheet":"Zapotrzebowanie","index":0,"n_rows":36,"n_cols":18,"rows_kept":36}
[]
[]
["Tytuł","Rodzaj","Pakiet 1","Pakiet 2","Pakiet 3","Pakiet 4","Pakiet 5","Pakiet 6","Pakiet 7","Pakiet 8","Pakiet 9","Pakiet 10","Pakiet 11","Pakiet 12","Razem ilość","Cena jednostkowa 1 egzemplarza w PLN brutto","Cena jednostkowa 11 miesięcznej prenumeraty w PLN brutto","Wartość  zamówienia w PLN brutto\n(ilość x cena jednostkowa 11 miesięcznej prenumeraty)"]
["Dziennik Gazeta Prawna (od pon do pt)","papierowe",{"$nulls":3},1,1,1,null,null,1,{"$nulls":3},{"$f":"SUM(C4:N4)","v":4},null,null,{"$f":"O4*Q4","v":0}]
["Dziennik Gazeta Prawna (od pon do pt)","elektroniczne",1,1,1,null,1,2,{"$nulls":3},1,null,null,{"$f":"SUM(C5:N5)","v":7},null,null,{"$f":"O5*Q5","v":0}]
["Rzeczpospolita (od pon do sob)","papierowe",{"$nulls":3},1,1,1,null,null,1,{"$nulls":3},4,null,null,0]
["Rzeczpospolita (od pon do sob)","elektroniczne",1,1,1,null,1,2,{"$nulls":6},6,null,null,0]
["Gazeta Wyborcza (od pon do sob)","papierowe",{"$nulls":3},1,1,{"$nulls":7},2,null,null,0]
["Gazeta Wyborcza (od pon do sob)","elektroniczne",null,null,1,null,1,{"$nulls":7},2,null,null,0]
["Newsweek Polska","papierowe",{"$nulls":4},1,2,{"$nulls":6},3,null,null,0]
["Newsweek Polska","elektroniczne",{"$nulls":4},1,2,{"$nulls":5},1,4,null,null,0]
["Forbes","papierowe",{"$nulls":3},1,null,1,{"$nulls":6},2,null,null,0]
["Forbes","elektroniczne",null,null,1,null,null,1,1,{"$nulls":5},3,null,null,0]
["FAKT ","papierowe",{"$nulls":5},1,{"$nulls":6},1,null,null,0]
["Super Express","papierowe",{"$nulls":5},1,{"$nulls":6},1,null,null,0]
["The Economist","elektroniczne",1,1,1,null,null,3,{"$nulls":6},6,null,null,0]
["Do Rzeczy","elektroniczne",{"$nulls":4},1,{"$nulls":7},1,null,null,0]
["MIT SLOAN   ","papierowe",null,null,1,null,null,1,{"$nulls":6},2,null,null,0]
["Polityka","elektroniczne",{"$nulls":4},1,2,{"$nulls":6},3,null,null,0]
["Puls Biznesu (od pon do pt)","papierowe",{"$nulls":3},1,1,{"$nulls":7},2,null,null,0]
["Puls Biznesu (od pon do pt)","elektroniczne",1,1,1,null,1,2,{"$nulls":6},6,null,null,0]
["Financial Times (od pon do pt)","elektroniczne",1,null,1,null,null,3,1,{"$nulls":5},6,null,null,0]
["Wprost ","elektroniczne",{"$nulls":4},1,2,{"$nulls":6},3,null,null,0]
["Ochrona danych osobowych","papierowe",{"$nulls":8},1,null,null,1,2,null,null,0]
["ABI Expert","papierowe",{"$nulls":11},1,1,null,null,0]
["Gazeta Podatkowa","papierowe",{"$nulls":7},1,{"$nulls":4},1,null,null,0]
["Gazeta podatkowa","elektroniczne",{"$nulls":7},1,{"$nulls":4},1,null,null,0]
["Foreign Affairs ","elektroniczne",1,null,1,null,null,3,{"$nulls":6},5,null,null,0]
["Prawo Pomocy publicznej dwumiesięcznik ","papierowe",null,null,1,{"$nulls":9},1,null,null,0]
["Przetargi publiczne","papierowe",{"$nulls":8},1,1,null,null,2,null,null,0]
["Przegląd Prawa Handlowego","papierowe",{"$nulls":8},1,{"$nulls":3},1,null,null,0]
["Kwartalnik „Kadry i Płace w Administracji”","papierowe",{"$nulls":10},1,null,1,null,null,0]
["„Sposób na kadry i płace”","papierowe",{"$nulls":10},1,null,1,null,null,0]
["Polska Zbrojna wydanie","elektroniczne",{"$nulls":11},1,1,null,null,0]
["Świat przemysłu kosmetycznego https://przemyslkosmetyczny.pl/","elektroniczne",1,{"$nulls":11},1,null,null,0]
[{"$nulls":16},"SUMA:",{"$f":"SUM(R4:R35)","v":0}]